[Event "*** Titled Tuesday Blitz"]
[Site "Chess.com"]
[Date "2021.03.02"]
[Round "6"]
[White "bocah_sakit"]
[Black "Sven_Tica"]
[Result "0-1"]
[WhiteElo "2854"]
[BlackElo "2678"]
[TimeControl "180+1"]
[EndTime "11:07:25 PST"]
[Termination "Sven_Tica won by checkmate"]

1. e4 {[%clk 0:03:00.9]} 1... c5 {[%clk 0:03:00.3]} 2. Nf3 {[%clk 0:03:01.1]}
2... Nf6 {[%clk 0:03:00.9]} 3. e5 {[%clk 0:02:56.5]} 3... Nd5 {[%clk 0:03:01.4]}
4. c3 {[%clk 0:02:55.1]} 4... e6 {[%clk 0:03:00.7]} 5. d4 {[%clk 0:02:55.4]}
5... cxd4 {[%clk 0:03:00.4]} 6. cxd4 {[%clk 0:02:56.3]} 6... b6 {[%clk
0:03:00.7]} 7. Bd3 {[%clk 0:02:54.6]} 7... Ba6 {[%clk 0:02:59.7]} 8. Be4 {[%clk
0:02:52.6]} 8... Nc6 {[%clk 0:02:45.4]} 9. Nc3 {[%clk 0:02:51.8]} 9... Nxc3
{[%clk 0:02:20]} 10. bxc3 {[%clk 0:02:52.7]} 10... Rc8 {[%clk 0:02:11.3]} 11.
Ng5 {[%clk 0:02:50.4]} 11... Be7 {[%clk 0:02:05.1]} 12. Qh5 {[%clk 0:02:47.2]}
12... g6 {[%clk 0:01:57.8]} 13. Qh6 {[%clk 0:02:45.6]} 13... Bf8 {[%clk
0:01:57.4]} 14. Qh3 {[%clk 0:02:43.7]} 14... Bg7 {[%clk 0:01:51]} 15. Bd3 {[%clk
0:02:31.2]} 15... Bxd3 {[%clk 0:01:41.2]} 16. Qxd3 {[%clk 0:02:32.1]} 16... d6
{[%clk 0:01:37.7]} 17. exd6 {[%clk 0:02:27.4]} 17... Qxd6 {[%clk 0:01:38.6]} 18.
Ne4 {[%clk 0:02:27]} 18... Qd5 {[%clk 0:01:19.9]} 19. Ba3 {[%clk 0:02:10.7]}
19... Ne5 {[%clk 0:01:13.5]} 20. Qe2 {[%clk 0:02:08.4]} 20... Nc4 {[%clk
0:01:12.8]} 21. Bc1 {[%clk 0:01:59.8]} 21... O-O {[%clk 0:01:13]} 22. O-O {[%clk
0:01:59]} 22... e5 {[%clk 0:01:10.9]} 23. Bh6 {[%clk 0:01:46.8]} 23... f5 {[%clk
0:01:08.2]} 24. Bxg7 {[%clk 0:01:46.1]} 24... Kxg7 {[%clk 0:01:09.1]} 25. Ng5
{[%clk 0:01:30.8]} 25... Rce8 {[%clk 0:01:03.1]} 26. Qc2 {[%clk 0:01:10.8]}
26... e4 {[%clk 0:01:00.9]} 27. Rae1 {[%clk 0:01:00.5]} 27... h6 {[%clk
0:00:55.7]} 28. Nh3 {[%clk 0:01:00.4]} 28... f4 {[%clk 0:00:56.1]} 29. Kh1
{[%clk 0:00:51.2]} 29... e3 {[%clk 0:00:32.9]} 30. f3 {[%clk 0:00:40.9]} 30...
Nd2 {[%clk 0:00:28.8]} 31. Rg1 {[%clk 0:00:41]} 31... g5 {[%clk 0:00:26.2]} 32.
Qd1 {[%clk 0:00:37.6]} 32... Rc8 {[%clk 0:00:23.3]} 33. Qc2 {[%clk 0:00:18.7]}
33... Qxd4 {[%clk 0:00:22.7]} 34. g3 {[%clk 0:00:15.5]} 34... Rxc3 {[%clk
0:00:21.9]} 35. Qb2 {[%clk 0:00:15.6]} 35... Nxf3 {[%clk 0:00:21.5]} 36. Rd1
{[%clk 0:00:14.5]} 36... Nd2 {[%clk 0:00:17.1]} 37. gxf4 {[%clk 0:00:14.8]}
37... e2 {[%clk 0:00:14.6]} 38. Rxd2 {[%clk 0:00:02.8]} 38... Qe4+ {[%clk
0:00:14.2]} 39. Rg2 {[%clk 0:00:03.4]} 39... e1=Q+ {[%clk 0:00:14.5]} 40. Ng1
{[%clk 0:00:04.2]} 40... Qxg1+ {[%clk 0:00:13.2]} 41. Kxg1 {[%clk 0:00:04.1]}
41... Qe1# {[%clk 0:00:13.9]} 0-1

[Event "*** Titled Tuesday Blitz"]
[Site "Chess.com"]
[Date "2021.03.02"]
[Round "6"]
[White "mortngabriel"]
[Black "andy_rekt"]
[Result "1/2-1/2"]
[WhiteElo "2464"]
[BlackElo "2275"]
[TimeControl "180+1"]
[EndTime "11:07:25 PST"]
[Termination "Game drawn by repetition"]

1. e4 {[%clk 0:03:00.9]} 1... e6 {[%clk 0:02:59.9]} 2. Nf3 {[%clk 0:03:00.4]}
2... d5 {[%clk 0:03:00.2]} 3. e5 {[%clk 0:03:00.5]} 3... c5 {[%clk 0:03:00]} 4.
b4 {[%clk 0:03:00.9]} 4... cxb4 {[%clk 0:03:00.9]} 5. a3 {[%clk 0:03:00.4]} 5...
b3 {[%clk 0:02:59.2]} 6. cxb3 {[%clk 0:02:58.4]} 6... Nc6 {[%clk 0:02:59.9]} 7.
d4 {[%clk 0:02:57.7]} 7... f6 {[%clk 0:02:48.6]} 8. Bd3 {[%clk 0:02:55.1]} 8...
fxe5 {[%clk 0:02:40.8]} 9. dxe5 {[%clk 0:02:56]} 9... Qc7 {[%clk 0:02:23.7]} 10.
Qe2 {[%clk 0:02:55]} 10... Nxe5 {[%clk 0:02:19.6]} 11. O-O {[%clk 0:02:22.7]}
11... Nxd3 {[%clk 0:02:14.9]} 12. Qxd3 {[%clk 0:02:23.6]} 12... Nf6 {[%clk
0:02:13.1]} 13. Bb2 {[%clk 0:02:12.1]} 13... Bd6 {[%clk 0:02:09.8]} 14. Nc3
{[%clk 0:02:09.9]} 14... a6 {[%clk 0:02:07.2]} 15. Rac1 {[%clk 0:02:09.6]} 15...
Qe7 {[%clk 0:01:57.8]} 16. Rfe1 {[%clk 0:01:35.3]} 16... O-O {[%clk 0:01:49.3]}
17. Na4 {[%clk 0:01:26.9]} 17... Bxa3 {[%clk 0:01:44.3]} 18. Bxa3 {[%clk
0:01:25.6]} 18... Qxa3 {[%clk 0:01:43.2]} 19. Nb6 {[%clk 0:01:25.6]} 19... Rb8
{[%clk 0:01:42.5]} 20. Nxc8 {[%clk 0:01:22]} 20... Rbxc8 {[%clk 0:01:42.8]} 21.
Rxc8 {[%clk 0:01:18]} 21... Rxc8 {[%clk 0:01:43.7]} 22. Rxe6 {[%clk 0:01:18.1]}
22... Rc1+ {[%clk 0:01:37.4]} 23. Re1 {[%clk 0:01:05.8]} 23... Rxe1+ {[%clk
0:01:31.7]} 24. Nxe1 {[%clk 0:01:06.7]} 24... Qc1 {[%clk 0:01:31.8]} 25. Kf1
{[%clk 0:01:00.9]} 25... b5 {[%clk 0:01:27.3]} 26. Qf5 {[%clk 0:00:56.5]} 26...
Qc6 {[%clk 0:01:13.2]} 27. g4 {[%clk 0:00:56.6]} 27... h6 {[%clk 0:01:12.4]} 28.
h4 {[%clk 0:00:56.3]} 28... Ne4 {[%clk 0:01:05.9]} 29. g5 {[%clk 0:00:47.7]}
29... hxg5 {[%clk 0:01:04.9]} 30. hxg5 {[%clk 0:00:48.6]} 30... a5 {[%clk
0:00:45.6]} 31. Nd3 {[%clk 0:00:44.6]} 31... a4 {[%clk 0:00:40.4]} 32. bxa4
{[%clk 0:00:39.1]} 32... bxa4 {[%clk 0:00:40.3]} 33. Kg2 {[%clk 0:00:34.3]}
33... Nd6 {[%clk 0:00:34.5]} 34. Qe6+ {[%clk 0:00:29.2]} 34... Kh7 {[%clk
0:00:22.8]} 35. g6+ {[%clk 0:00:13.7]} 35... Kh6 {[%clk 0:00:19.4]} 36. Ne5
{[%clk 0:00:14.2]} 36... Qc7 {[%clk 0:00:15.6]} 37. Qh3+ {[%clk 0:00:10.1]}
37... Kg5 {[%clk 0:00:15.9]} 38. Qe6 {[%clk 0:00:03]} 38... Kh6 {[%clk
0:00:09.7]} 39. Qh3+ {[%clk 0:00:02.5]} 39... Kg5 {[%clk 0:00:09.8]} 40. Qe6
{[%clk 0:00:03]} 40... Kh6 {[%clk 0:00:07.5]} 1/2-1/2

[Event "*** Titled Tuesday Blitz"]
[Site "Chess.com"]
[Date "2021.03.02"]
[Round "6"]
[White "hellokostya"]
[Black "stasiek18"]
[Result "0-1"]
[WhiteElo "2565"]
[BlackElo "2424"]
[TimeControl "180+1"]
[EndTime "11:07:26 PST"]
[Termination "stasiek18 won by checkmate"]

1. d4 {[%clk 0:03:00.9]} 1... Nf6 {[%clk 0:02:59.3]} 2. Bg5 {[%clk 0:03:00.5]}
2... d5 {[%clk 0:02:53.9]} 3. Nd2 {[%clk 0:02:59.9]} 3... Nbd7 {[%clk
0:02:52.5]} 4. e3 {[%clk 0:03:00.2]} 4... c5 {[%clk 0:02:48.9]} 5. c3 {[%clk
0:02:59.4]} 5... e6 {[%clk 0:02:47.6]} 6. Bd3 {[%clk 0:02:59.3]} 6... Be7 {[%clk
0:02:47.7]} 7. f4 {[%clk 0:02:57.9]} 7... h6 {[%clk 0:02:39]} 8. Bh4 {[%clk
0:02:56.7]} 8... Qc7 {[%clk 0:02:31.4]} 9. Ngf3 {[%clk 0:02:35.3]} 9... Rb8
{[%clk 0:02:31]} 10. O-O {[%clk 0:02:34.5]} 10... b5 {[%clk 0:02:30.7]} 11. Ne5
{[%clk 0:02:34.4]} 11... b4 {[%clk 0:02:27.5]} 12. Ndf3 {[%clk 0:02:23.6]} 12...
c4 {[%clk 0:02:22.6]} 13. Bc2 {[%clk 0:02:20.5]} 13... bxc3 {[%clk 0:02:22.7]}
14. bxc3 {[%clk 0:02:20.1]} 14... Ba3 {[%clk 0:02:09]} 15. Nxf7 {[%clk
0:01:58.4]} 15... Kxf7 {[%clk 0:02:05.2]} 16. Ne5+ {[%clk 0:01:58.3]} 16... Kg8
{[%clk 0:01:53.8]} 17. Rb1 {[%clk 0:01:14.3]} 17... Rxb1 {[%clk 0:01:47]} 18.
Bxb1 {[%clk 0:01:15.2]} 18... Bd6 {[%clk 0:01:35.1]} 19. Qc2 {[%clk 0:01:13.3]}
19... Ne4 {[%clk 0:01:29.3]} 20. Qe2 {[%clk 0:01:07.2]} 20... Nxe5 {[%clk
0:01:00.5]} 21. fxe5 {[%clk 0:01:06.4]} 21... Be7 {[%clk 0:01:00.9]} 22. Be1
{[%clk 0:00:38.4]} 22... Kh7 {[%clk 0:00:55.4]} 23. Qg4 {[%clk 0:00:33.2]} 23...
Rf8 {[%clk 0:00:40.8]} 24. Rf4 {[%clk 0:00:27.6]} 24... Rxf4 {[%clk 0:00:34.5]}
25. exf4 {[%clk 0:00:28.5]} 25... Qb6 {[%clk 0:00:25.1]} 26. Qd1 {[%clk
0:00:26.8]} 26... Qb2 {[%clk 0:00:17.9]} 27. h3 {[%clk 0:00:26.1]} 27... Bd7
{[%clk 0:00:11]} 28. Bc2 {[%clk 0:00:21.5]} 28... Kg8 {[%clk 0:00:10.3]} 29. f5
{[%clk 0:00:16]} 29... Nxc3 {[%clk 0:00:09.3]} 30. Qd2 {[%clk 0:00:13.9]} 30...
Ne4 {[%clk 0:00:07.1]} 31. Qe2 {[%clk 0:00:14.1]} 31... Qxd4+ {[%clk 0:00:06.4]}
32. Kh1 {[%clk 0:00:12.9]} 32... exf5 {[%clk 0:00:05.2]} 33. Qh5 {[%clk
0:00:09.3]} 33... Qxe5 {[%clk 0:00:03.8]} 34. Bd1 {[%clk 0:00:05.2]} 34... Bd6
{[%clk 0:00:03.5]} 35. Kg1 {[%clk 0:00:04.9]} 35... Qh2+ {[%clk 0:00:02.4]} 36.
Kf1 {[%clk 0:00:05.4]} 36... Qh1+ {[%clk 0:00:02.1]} 37. Ke2 {[%clk 0:00:06]}
37... c3 {[%clk 0:00:01.3]} 38. Kd3 {[%clk 0:00:06.1]} 38... Bb5+ {[%clk
0:00:01.3]} 39. Kc2 {[%clk 0:00:06.1]} 39... Qxe1 {[%clk 0:00:01.9]} 40. Qg6
{[%clk 0:00:05.3]} 40... Qd2+ {[%clk 0:00:02.3]} 41. Kb3 {[%clk 0:00:05.7]}
41... Qb2# {[%clk 0:00:02.7]} 0-1

[Event "*** Titled Tuesday Blitz"]
[Site "Chess.com"]
[Date "2021.03.02"]
[Round "6"]
[White "GUST_b"]
[Black "Bayernbk"]
[Result "0-1"]
[WhiteElo "2364"]
[BlackElo "2547"]
[TimeControl "180+1"]
[EndTime "11:07:26 PST"]
[Termination "Bayernbk won by resignation"]

1. Nf3 {[%clk 0:03:00.1]} 1... Nf6 {[%clk 0:02:58.7]} 2. c4 {[%clk 0:03:00.4]}
2... e6 {[%clk 0:02:59]} 3. g3 {[%clk 0:03:00.6]} 3... d5 {[%clk 0:02:59.3]} 4.
Bg2 {[%clk 0:03:01.3]} 4... Be7 {[%clk 0:03:00]} 5. O-O {[%clk 0:03:01.9]} 5...
O-O {[%clk 0:03:00.7]} 6. d4 {[%clk 0:03:02.6]} 6... c6 {[%clk 0:03:00.7]} 7.
Nc3 {[%clk 0:03:02]} 7... b6 {[%clk 0:03:01.4]} 8. Nd2 {[%clk 0:03:00.7]} 8...
Bb7 {[%clk 0:03:01.8]} 9. e4 {[%clk 0:03:01.1]} 9... Na6 {[%clk 0:03:02.4]} 10.
e5 {[%clk 0:02:59.7]} 10... Nd7 {[%clk 0:03:02.3]} 11. cxd5 {[%clk 0:02:52.7]}
11... cxd5 {[%clk 0:03:02]} 12. f4 {[%clk 0:02:52.1]} 12... f5 {[%clk
0:02:45.9]} 13. exf6 {[%clk 0:02:47.7]} 13... Bxf6 {[%clk 0:02:46.1]} 14. Nf3
{[%clk 0:02:47.5]} 14... Rc8 {[%clk 0:02:46.1]} 15. Re1 {[%clk 0:02:47.6]} 15...
Re8 {[%clk 0:02:45.5]} 16. Bh3 {[%clk 0:02:47.5]} 16... Nf8 {[%clk 0:02:44.5]}
17. Be3 {[%clk 0:02:42.3]} 17... Nb4 {[%clk 0:02:41]} 18. a3 {[%clk 0:02:40.1]}
18... Nc6 {[%clk 0:02:41.6]} 19. Qd3 {[%clk 0:02:32.9]} 19... Na5 {[%clk
0:02:30.5]} 20. Bf2 {[%clk 0:02:31]} 20... Nc4 {[%clk 0:02:28.2]} 21. b4 {[%clk
0:02:21.4]} 21... Nd6 {[%clk 0:02:22.3]} 22. Re2 {[%clk 0:02:17.8]} 22... Ne4
{[%clk 0:02:16.4]} 23. Nd1 {[%clk 0:02:02.2]} 23... Rc7 {[%clk 0:02:10.4]} 24.
Ne5 {[%clk 0:01:58.7]} 24... Qc8 {[%clk 0:02:10.3]} 25. Be3 {[%clk 0:01:56.1]}
25... a5 {[%clk 0:01:36.7]} 26. Nf2 {[%clk 0:01:47.6]} 26... Rc3 {[%clk
0:01:23.4]} 27. Qd1 {[%clk 0:01:42.3]} 27... Ba6 {[%clk 0:01:19.2]} 28. Nxe4
{[%clk 0:01:42.1]} 28... Bxe2 {[%clk 0:01:17.5]} 29. Nxf6+ {[%clk 0:01:42.3]}
29... gxf6 {[%clk 0:01:15.1]} 30. Qxe2 {[%clk 0:01:42.5]} 30... fxe5 {[%clk
0:01:15.2]} 31. fxe5 {[%clk 0:01:38]} 31... Ng6 {[%clk 0:01:09.6]} 32. bxa5
{[%clk 0:01:23.9]} 32... bxa5 {[%clk 0:01:06.8]} 33. Bf2 {[%clk 0:01:24.2]}
33... Rc1+ {[%clk 0:01:03.7]} 34. Rxc1 {[%clk 0:01:23.1]} 34... Qxc1+ {[%clk
0:01:04.3]} 35. Kg2 {[%clk 0:01:23.8]} 35... Qg5 {[%clk 0:01:03.1]} 36. Bg4
{[%clk 0:01:22.3]} 36... h5 {[%clk 0:01:00.1]} 37. Qb5 {[%clk 0:01:10.9]} 37...
Nh4+ {[%clk 0:00:32.4]} 38. gxh4 {[%clk 0:01:01.4]} 38... Qxg4+ {[%clk
0:00:31.1]} 39. Kf1 {[%clk 0:01:01.6]} 39... Rf8 {[%clk 0:00:28]} 40. Qd3 {[%clk
0:00:58.4]} 40... a4 {[%clk 0:00:20.4]} 41. Qc2 {[%clk 0:00:55.5]} 41... Kg7
{[%clk 0:00:17.2]} 42. Qxa4 {[%clk 0:00:53.5]} 42... Qh3+ {[%clk 0:00:11]} 43.
Kg1 {[%clk 0:00:49.8]} 43... Qf5 {[%clk 0:00:07.9]} 44. Qa7+ {[%clk 0:00:23.2]}
44... Rf7 {[%clk 0:00:07]} 0-1

[Event "*** Titled Tuesday Blitz"]
[Site "Chess.com"]
[Date "2021.03.02"]
[Round "6"]
[White "Arvids_Andrejevs"]
[Black "KaterynaLagno"]
[Result "1-0"]
[WhiteElo "2375"]
[BlackElo "2581"]
[TimeControl "180+1"]
[EndTime "11:07:28 PST"]
[Termination "Arvids_Andrejevs won on time"]

1. e4 {[%clk 0:03:00.9]} 1... e5 {[%clk 0:02:59.8]} 2. Nf3 {[%clk 0:02:56.2]}
2... Nc6 {[%clk 0:03:00.2]} 3. Nc3 {[%clk 0:02:49.1]} 3... Nf6 {[%clk
0:02:59.3]} 4. Bb5 {[%clk 0:02:49.2]} 4... Bd6 {[%clk 0:02:57.2]} 5. O-O {[%clk
0:02:48.4]} 5... O-O {[%clk 0:02:56.9]} 6. d3 {[%clk 0:02:47.9]} 6... Re8 {[%clk
0:02:51.3]} 7. h3 {[%clk 0:02:47.8]} 7... a6 {[%clk 0:02:47.9]} 8. Ba4 {[%clk
0:02:46.6]} 8... Bc5 {[%clk 0:02:47.3]} 9. Kh1 {[%clk 0:02:31.4]} 9... h6 {[%clk
0:02:45.6]} 10. Nh2 {[%clk 0:02:29.5]} 10... d6 {[%clk 0:02:33.7]} 11. Bxc6
{[%clk 0:02:26.2]} 11... bxc6 {[%clk 0:02:33.2]} 12. f4 {[%clk 0:02:26.2]} 12...
exf4 {[%clk 0:02:13.8]} 13. Bxf4 {[%clk 0:02:25.8]} 13... Rb8 {[%clk 0:02:09.2]}
14. Rb1 {[%clk 0:02:11.7]} 14... Be6 {[%clk 0:02:07.9]} 15. d4 {[%clk
0:02:00.8]} 15... Bb4 {[%clk 0:02:07.5]} 16. e5 {[%clk 0:01:50.6]} 16... dxe5
{[%clk 0:02:03.5]} 17. Bxe5 {[%clk 0:01:50.4]} 17... Nd7 {[%clk 0:01:41.5]} 18.
Bf4 {[%clk 0:01:36.3]} 18... Bxc3 {[%clk 0:01:21.1]} 19. bxc3 {[%clk 0:01:36.1]}
19... Bxa2 {[%clk 0:01:21.3]} 20. Rxb8 {[%clk 0:01:31]} 20... Qxb8 {[%clk
0:01:22.2]} 21. Qg4 {[%clk 0:01:26.5]} 21... Be6 {[%clk 0:01:20.9]} 22. Qg3
{[%clk 0:01:22.1]} 22... Kh8 {[%clk 0:01:17.3]} 23. Bxc7 {[%clk 0:01:13.4]}
23... Qb5 {[%clk 0:01:17.3]} 24. Re1 {[%clk 0:01:02.8]} 24... Qf5 {[%clk
0:01:15]} 25. Ng4 {[%clk 0:00:56.4]} 25... Kh7 {[%clk 0:01:10.3]} 26. c4 {[%clk
0:00:43.8]} 26... Rc8 {[%clk 0:01:03]} 27. Bf4 {[%clk 0:00:34.9]} 27... Qxc2
{[%clk 0:00:58.7]} 28. d5 {[%clk 0:00:26.4]} 28... cxd5 {[%clk 0:00:57.3]} 29.
cxd5 {[%clk 0:00:26.7]} 29... Bxg4 {[%clk 0:00:54.5]} 30. Rc1 {[%clk 0:00:20.9]}
30... Qxc1+ {[%clk 0:00:44.1]} 31. Bxc1 {[%clk 0:00:20.5]} 31... Rxc1+ {[%clk
0:00:45]} 32. Kh2 {[%clk 0:00:21.1]} 32... Bh5 {[%clk 0:00:40.8]} 33. Qf4 {[%clk
0:00:16.7]} 33... Rc2 {[%clk 0:00:29.3]} 34. Qf5+ {[%clk 0:00:15.3]} 34... Bg6
{[%clk 0:00:29.9]} 35. Qxd7 {[%clk 0:00:15.5]} 35... Be4 {[%clk 0:00:30.5]} 36.
Kg1 {[%clk 0:00:13.8]} 36... Rxg2+ {[%clk 0:00:28.7]} 37. Kf1 {[%clk 0:00:14.1]}
37... Rd2 {[%clk 0:00:25.9]} 38. d6 {[%clk 0:00:13.6]} 38... f5 {[%clk
0:00:09.7]} 39. Qc7 {[%clk 0:00:11.9]} 39... Bd3+ {[%clk 0:00:06.1]} 40. Ke1
{[%clk 0:00:11.8]} 40... Re2+ {[%clk 0:00:06.5]} 41. Kd1 {[%clk 0:00:11.9]} 1-0

[Event "*** Titled Tuesday Blitz"]
[Site "Chess.com"]
[Date "2021.03.02"]
[Round "6"]
[White "whogeeyao"]
[Black "masrahi"]
[Result "1-0"]
[WhiteElo "2383"]
[BlackElo "2219"]
[TimeControl "180+1"]
[EndTime "11:07:28 PST"]
[Termination "whogeeyao won on time"]

1. e4 {[%clk 0:03:00.9]} 1... e5 {[%clk 0:02:58.9]} 2. Nf3 {[%clk 0:03:00.5]}
2... Nc6 {[%clk 0:02:59.1]} 3. Bb5 {[%clk 0:03:01]} 3... a6 {[%clk 0:02:58.3]}
4. Ba4 {[%clk 0:03:01.3]} 4... Nf6 {[%clk 0:02:57]} 5. O-O {[%clk 0:03:01.6]}
5... Be7 {[%clk 0:02:57.1]} 6. d3 {[%clk 0:03:01.5]} 6... b5 {[%clk 0:02:55.9]}
7. Bb3 {[%clk 0:03:01.4]} 7... O-O {[%clk 0:02:54.9]} 8. Nc3 {[%clk 0:03:01.5]}
8... d6 {[%clk 0:02:52.6]} 9. a3 {[%clk 0:03:01.2]} 9... Na5 {[%clk 0:02:39.3]}
10. Ba2 {[%clk 0:03:01]} 10... c5 {[%clk 0:02:34.6]} 11. b4 {[%clk 0:03:00.4]}
11... Nc6 {[%clk 0:02:29.9]} 12. Nd5 {[%clk 0:03:00.7]} 12... Nxd5 {[%clk
0:02:24.1]} 13. Bxd5 {[%clk 0:03:01.6]} 13... Qc7 {[%clk 0:02:19.5]} 14. c3
{[%clk 0:03:01.2]} 14... Be6 {[%clk 0:02:18.4]} 15. Bb2 {[%clk 0:03:01.1]} 15...
Bxd5 {[%clk 0:02:14.8]} 16. exd5 {[%clk 0:03:01.1]} 16... Nb8 {[%clk 0:02:14.9]}
17. c4 {[%clk 0:02:45.8]} 17... Nd7 {[%clk 0:02:10.6]} 18. Nd2 {[%clk
0:02:44.2]} 18... f5 {[%clk 0:02:09.9]} 19. f4 {[%clk 0:02:43.3]} 19... Bf6
{[%clk 0:02:08.7]} 20. fxe5 {[%clk 0:02:43]} 20... Bxe5 {[%clk 0:02:04.7]} 21.
Bxe5 {[%clk 0:02:41.1]} 21... Nxe5 {[%clk 0:02:04.8]} 22. Qc2 {[%clk 0:02:34.6]}
22... Rac8 {[%clk 0:01:49.3]} 23. Rac1 {[%clk 0:02:18.3]} 23... Ng4 {[%clk
0:01:45]} 24. Rf3 {[%clk 0:02:04.1]} 24... Qe7 {[%clk 0:01:32.4]} 25. Nf1 {[%clk
0:01:48]} 25... Qg5 {[%clk 0:01:23.3]} 26. cxb5 {[%clk 0:01:01.7]} 26... axb5
{[%clk 0:01:22.1]} 27. Qd2 {[%clk 0:00:44.5]} 27... f4 {[%clk 0:01:17.1]} 28. d4
{[%clk 0:00:35.7]} 28... Ne3 {[%clk 0:00:54.5]} 29. dxc5 {[%clk 0:00:21.7]}
29... dxc5 {[%clk 0:00:53.5]} 30. bxc5 {[%clk 0:00:19.4]} 30... Nxd5 {[%clk
0:00:45.4]} 31. c6 {[%clk 0:00:17]} 31... h6 {[%clk 0:00:36.8]} 32. Rd3 {[%clk
0:00:15.3]} 32... Nf6 {[%clk 0:00:19.7]} 33. Rf3 {[%clk 0:00:11.8]} 33... Ng4
{[%clk 0:00:14.9]} 34. Qd4 {[%clk 0:00:08.2]} 34... Qg6 {[%clk 0:00:07.4]} 35.
Rxf4 {[%clk 0:00:06.2]} 35... Rxf4 {[%clk 0:00:05]} 36. Qxf4 {[%clk 0:00:07.1]}
36... Kh7 {[%clk 0:00:02]} 37. h3 {[%clk 0:00:06.7]} 37... Nf6 {[%clk
0:00:01.5]} 38. c7 {[%clk 0:00:06.9]} 38... Qd3 {[%clk 0:00:01]} 39. Ng3 {[%clk
0:00:06]} 1-0

[Event "*** Titled Tuesday Blitz"]
[Site "Chess.com"]
[Date "2021.03.02"]
[Round "6"]
[White "Kretov_Evgenij"]
[Black "kingofthenil"]
[Result "1-0"]
[WhiteElo "2611"]
[BlackElo "2821"]
[TimeControl "180+1"]
[EndTime "11:07:29 PST"]
[Termination "Kretov_Evgenij won on time"]

1. d4 {[%clk 0:03:00.9]} 1... Nf6 {[%clk 0:02:59.6]} 2. c4 {[%clk 0:03:01]} 2...
c5 {[%clk 0:03:00]} 3. d5 {[%clk 0:03:00.7]} 3... e6 {[%clk 0:03:00.9]} 4. Nc3
{[%clk 0:03:00.5]} 4... exd5 {[%clk 0:03:01.8]} 5. cxd5 {[%clk 0:03:00.9]} 5...
g6 {[%clk 0:03:02.7]} 6. e4 {[%clk 0:03:01.2]} 6... d6 {[%clk 0:03:03.1]} 7. f4
{[%clk 0:03:01.5]} 7... Bg7 {[%clk 0:03:03.2]} 8. Bb5+ {[%clk 0:03:01.6]} 8...
Nfd7 {[%clk 0:03:03.6]} 9. a4 {[%clk 0:03:02.2]} 9... O-O {[%clk 0:03:04.5]} 10.
Nf3 {[%clk 0:03:02.2]} 10... Na6 {[%clk 0:03:05.4]} 11. O-O {[%clk 0:03:02.4]}
11... Nb4 {[%clk 0:03:06.3]} 12. Re1 {[%clk 0:03:02.5]} 12... a6 {[%clk
0:03:05.8]} 13. Bf1 {[%clk 0:03:02.5]} 13... Re8 {[%clk 0:03:05.6]} 14. Be3
{[%clk 0:03:02.3]} 14... f5 {[%clk 0:03:02.9]} 15. Ng5 {[%clk 0:02:56.9]} 15...
Nf8 {[%clk 0:03:02.4]} 16. e5 {[%clk 0:02:49.5]} 16... dxe5 {[%clk 0:02:56.4]}
17. Bxc5 {[%clk 0:02:49.5]} 17... h6 {[%clk 0:02:28.8]} 18. Ne6 {[%clk 0:02:39]}
18... Bxe6 {[%clk 0:01:46.9]} 19. dxe6 {[%clk 0:02:35.3]} 19... Qxd1 {[%clk
0:01:39.5]} 20. Rexd1 {[%clk 0:02:27.4]} 20... Nc2 {[%clk 0:01:35.8]} 21. Rac1
{[%clk 0:02:20.9]} 21... Nxe6 {[%clk 0:01:34]} 22. Bc4 {[%clk 0:02:11.5]} 22...
Nd4 {[%clk 0:01:31.3]} 23. fxe5 {[%clk 0:02:11]} 23... Rac8 {[%clk 0:01:22.7]}
24. b4 {[%clk 0:01:45.3]} 24... Kh7 {[%clk 0:01:19.1]} 25. Bxe6 {[%clk
0:01:32.6]} 25... Nxe6 {[%clk 0:01:19.1]} 26. Bd6 {[%clk 0:01:31.8]} 26... Nf4
{[%clk 0:00:40.1]} 27. g3 {[%clk 0:01:25.6]} 27... Nh3+ {[%clk 0:00:20.6]} 28.
Kg2 {[%clk 0:01:24.6]} 28... Ng5 {[%clk 0:00:21.2]} 29. h4 {[%clk 0:00:55.5]}
29... Nf7 {[%clk 0:00:18.5]} 30. Nd5 {[%clk 0:00:52.5]} 30... Rxc1 {[%clk
0:00:14.7]} 31. Rxc1 {[%clk 0:00:52.8]} 31... Bxe5 {[%clk 0:00:12.7]} 32. Rc7
{[%clk 0:00:42.7]} 32... Kg7 {[%clk 0:00:04.9]} 33. Bxe5+ {[%clk 0:00:31.3]}
33... Rxe5 {[%clk 0:00:05.8]} 34. Nf4 {[%clk 0:00:27.3]} 34... b5 {[%clk
0:00:04]} 35. Rc6 {[%clk 0:00:23.6]} 35... bxa4 {[%clk 0:00:03.7]} 36. Rxg6+
{[%clk 0:00:23.5]} 36... Kf8 {[%clk 0:00:02.9]} 37. Rxa6 {[%clk 0:00:23.6]}
37... Re4 {[%clk 0:00:01.4]} 38. Rxa4 {[%clk 0:00:23.2]} 38... Ne5 {[%clk
0:00:02]} 39. Ra8+ {[%clk 0:00:22.8]} 39... Kf7 {[%clk 0:00:01.9]} 40. Ra7+
{[%clk 0:00:23.1]} 40... Kg8 {[%clk 0:00:02]} 41. b5 {[%clk 0:00:21.9]} 41...
Ng4 {[%clk 0:00:02.4]} 42. b6 {[%clk 0:00:21.3]} 42... Rb4 {[%clk 0:00:01.6]}
43. b7 {[%clk 0:00:21.1]} 43... Rb2+ {[%clk 0:00:02.5]} 44. Kf1 {[%clk
0:00:21.1]} 44... Ne3+ {[%clk 0:00:02.5]} 45. Kg1 {[%clk 0:00:21.1]} 1-0